Cogmind - Beta 10.2 @@@ ROGUE MODE // 2020.12.21 @ 10:49:07 Player: CrossedViper Result: Destroyed by 1C-UTU with 1C-UTU's Sword "Choppy" Performance ------------- Evolutions (1) 500 Regions Visited (6) 1200 Robots Destroyed (46) 230 Value Destroyed (798) 798 Prototype IDs (27) 540 Alien Tech Used (0) 0 Bonus (-407) -407 TOTAL SCORE: 2861 Bonus ------- Follower Combat Kills 211 Aligned with FarCom 300 Friendly Fire -918 Cogmind --------- Core Integrity 0/400 Matter 169/300 Energy 310/310 System Corruption 2% Temperature Cool (0) Movement Hovering (150) Ox1 Location -8/Mines Parts ------- > --- POWER (1) -------- Reinforced Fission Core > --- PROPULSION (2) --- Combat Antigrav System > --- UTILITY (4) ------ Large Storage Unit Large Storage Unit Improved Target Analyzer > --- WEAPON (2) ------- Axe > --- INVENTORY (16) --- Reinforced Ion Engine Light Neutrino Core Gravmag Array Makeshift Sensor Array Target Analyzer Advanced Core Analyzer Improved Armor Integrity Analyzer Advanced Transmission Jammer Makeshift System Shield High-powered Shotgun High-powered Shotgun 8R-AWN's Boregun Shock Bomb Launcher Rocket Launcher Axe Peak State ------------ > --- POWER ------------ Light Neutrino Core > --- PROPULSION ------- Makeshift Hover Unit Combat Antigrav System > --- UTILITY ---------- Large Storage Unit Large Storage Unit Improved Target Analyzer Advanced Transmission Jammer > --- WEAPON ----------- Axe Axe > --- INVENTORY -------- Reinforced Fission Core Gravmag Array Makeshift Sensor Array Target Analyzer Advanced Core Analyzer Improved Armor Integrity Analyzer Makeshift System Shield High-powered Shotgun 8R-AWN's Boregun Shock Bomb Launcher Rocket Launcher Axe [Rating: 46] Favorites ----------- Power Reinforced Ion Engine Engine Reinforced Ion Engine Power Core Light Neutrino Core Propulsion Light Treads Treads Light Treads Leg Aluminum Leg Hover Unit Combat Antigrav System Utility Large Storage Unit Device Disposable Heat Sink Storage Large Storage Unit Processor Target Analyzer Protection Hardened Light Armor Plating Weapon High-powered Shotgun Energy Gun Medium Laser Energy Cannon Beam Cannon Ballistic Gun High-powered Shotgun Launcher Grenade Launcher Slashing Weapon Axe Build | -11 -10 -10 -9 -9 -9 -8 ------- Run | Scr Mat Min Mat Min Exi Min Slots Evolved 2 | . . . 2 . . . Power . | . . . . . . . Propulsion . | . . . . . . . Utility 2 | . . . 2 . . . Weapon . | . . . . . . . Parts Attached 60 | . 5 6 14 . 32 3 Power 7 | . . 1 1 . 4 1 Engine 3 | . . 1 1 . 1 . Core 4 | . . . . . 3 1 Reactor . | . . . . . . . Propulsion 11 | . . . 2 . 9 . Treads 9 | . . . 2 . 7 . Leg . | . . . . . . . Wheel . | . . . . . . . Hover 2 | . . . . . 2 . Flight . | . . . . . . . Utility 17 | . 2 . 3 . 10 2 Device 5 | . . . 1 . 3 1 Storage 4 | . 2 . . . 2 . Processor 2 | . . . 1 . 1 . Hackware . | . . . . . . . Protection 6 | . . . 1 . 4 1 Artifact . | . . . . . . . Weapon 25 | . 3 5 8 . 9 . Energy Gun 6 | . 3 3 . . . . Energy Cannon 2 | . . 1 . . 1 . Ballistic Gun 9 | . . . 6 . 3 . Ballistic Cannon . | . . . . . . . Launcher 4 | . . 1 2 . 1 . Special Weapon . | . . . . . . . Impact Weapon . | . . . . . . . Slashing Weapon 4 | . . . . . 4 . Piercing Weapon . | . . . . . . . Special Melee Weapon . | . . . . . . . Unidentified Prototypes 4 | . . . 1 . 3 . Parts Lost 9 | . . . . . 7 2 Power . | . . . . . . . Propulsion 5 | . . . . . 4 1 Utility 2 | . . . . . 2 . Weapon 2 | . . . . . 1 1 Highest Loss Streak 3 | . . . . . 3 2 Average Slot Usage (%) 96 | . 99 99 95 100 92 100 Engine 10 | . 14 14 11 11 7 . Core 1 | . . . . . 3 11 Treads 11 | . . . 21 22 19 . Leg 11 | . 28 28 . . . . Hover 1 | . . . . . 2 22 Storage 23 | . 27 28 22 22 19 22 Processor 6 | . . . 10 11 11 11 Protection 5 | . . . 6 11 9 2 Energy Gun 9 | . 28 24 . . . . Ballistic Gun 10 | . . . 21 22 14 . Slashing Weapon 1 | . . . . . 3 22 Naked Turns . | . . . . . . . Heaviest Build 64 | 11 41 43 53 53 64 64 Greatest Support 47 | 20 20 20 40 40 47 47 Greatest Overweight (x) 2 | . 2 2 1 1 1 1 Average Overweight (x) 1 | . 1 1 . 1 . . Largest Inventory Capacity 22 | . 16 16 16 16 22 16 Average Capacity 15 | . 15 16 16 16 14 16 Most Carried 21 | . 11 16 16 16 21 16 Average Carried 13 | . 8 13 15 16 12 15 Final Capacity 16 | 6 16 16 16 16 16 16 Final Carried 16 | 6 10 16 16 16 15 16 Class Distribution -------------------- 80% | Mutant 11% | Scavenger-Mutant 7% | Hauler-Mutant Dominant Class ---------------- Mutant | -10/Materials Mutant | -10/Mines Mutant | -9/Materials Mutant | -9/Mines Mutant | -9/Exiles Scavenger-Mutant | -8/Mines Resources | -11 -10 -10 -9 -9 -9 -8 ----------- Run | Scr Mat Min Mat Min Exi Min Matter Collected 1213 | 200 50 40 495 . 405 23 Remotely . | . . . . . . . Salvage Created 1366 | . 192 177 599 . 398 . Parts 103 | . 6 8 39 . 50 . Haulers Intercepted 4 | . 1 . 3 . . . Recyclers Shooed 3 | . 1 1 1 . . . Parts Field Recycled . | . . . . . . . Retrieved Matter . | . . . . . . . Parts Self-Destructed . | . . . . . . . Prevented . | . . . . . . . Kills | -11 -10 -10 -9 -9 -9 -8 ------- Run | Scr Mat Min Mat Min Exi Min Combat Hostiles Destroyed 26 | . 3 6 13 . 4 . Melee 1 | . . . . . 1 . Guns 15 | . 3 2 8 . 2 . Cannons 2 | . . 1 . . 1 . AOE 8 | . . 3 5 . . . Classes Destroyed 12 | . 2 2 6 . 2 . Worker 3 | . . . 3 . . . Builder 1 | . . . 1 . . . Tunneler 2 | . . 1 1 . . . Hauler 4 | . 1 . 3 . . . Recycler 1 | . . . 1 . . . Watcher 2 | . . . 2 . . . Swarmer 9 | . . 3 6 . . . Grunt 8 | . 3 3 2 . . . Brawler 1 | . . . 1 . . . Sentry 4 | . . . 4 . . . Zionite 8 | . . . . . 8 . Assembled 7 | . . . . . 7 . Best Kill Streak 12 | . 2 3 12 . 6 . Combat Bots Only 5 | . 2 3 5 . 2 . Max Kills in Single Turn 4 | . 1 2 3 . 4 . Gunslinging 1 | . . . 1 . . . Exploded 2 | . . 2 2 . . . Melee 1 | . . . . . 1 . Uniques/NPCs Destroyed 3 | . . . . . 3 . 8R-AWN (-9/Exiles) EX-BIN (-9/Exiles) EX-DEC (-9/Exiles) Combat | -11 -10 -10 -9 -9 -9 -8 -------- Run | Scr Mat Min Mat Min Exi Min Damage Taken 2786 | . 138 193 366 . 1709 380 Core 469 | . 48 . 20 . 204 197 Absorbed by Shields . | . . . . . . . Core Remaining (%) 90 | 100 . 80 . . . . Volleys Fired 120 | . 26 11 38 . 45 . Largest 2 | . 2 2 2 . 1 . Hottest 110 | . 100 110 50 . 100 . Shots Fired 231 | . 52 20 71 . 88 . Gun 215 | . 52 15 66 . 82 . Cannon 5 | . . 3 . . 2 . Launcher 11 | . . 2 5 . 4 . Special . | . . . . . . . Kinetic 148 | . . . 66 . 82 . Thermal 72 | . 52 18 . . 2 . Explosive 7 | . . 2 5 . . . Electromagnetic 4 | . . . . . 4 . Robot Hit Streak 21 | . 11 8 6 . 21 . Robot Miss Streak 4 | . 2 2 4 . 3 . Penetration Max 1 | . . . . . 1 . Secondary Targets 2 | . 1 . 1 . . . Max Gunslinging Chain 1 | . 1 . 1 . . . Autonomous 44 | . . . . . 44 . Shots Hit Robots 182 | . 37 13 45 . 84 3 Core Hits 85 | . 10 12 31 . 30 2 Critical Hits 35 | . . . 6 . 29 . Critical Kills 9 | . . . 3 . 6 . Critical Parts Destroyed 15 | . . . 3 . 12 . Melee Attacks 24 | . . . . . 21 3 Impact . | . . . . . . . Slashing 24 | . . . . . 21 3 Piercing . | . . . . . . . Sneak Attacks . | . . . . . . . Combat Hostiles . | . . . . . . . Follow-up Attacks 3 | . . . . . 2 1 Damage Inflicted 5137 | . 378 379 1453 . 2852 75 Guns 2760 | . 363 109 787 . 1501 . Cannons 277 | . . 52 . . 225 . Explosions 1378 | . . 218 661 . 499 . Melee 702 | . . . . . 627 75 Ramming 20 | . 15 . 5 . . . Kinetic 2288 | . . . 787 . 1501 . Thermal 1182 | . 363 161 . . 658 . Explosive 879 | . . 218 661 . . . Electromagnetic 66 | . . . . . 66 . Impact . | . . . . . . . Slashing 702 | . . . . . 627 75 Piercing . | . . . . . . . Highest Corruption 2 | . . . 2 2 2 2 Average Corruption 2 | . . . 2 2 2 2 Corruption Purged . | . . . . . . . Effects 22 | . . . 2 2 18 . Message Errors 11 | . . . 1 2 8 . Heat Flow Errors 2 | . . . . . 2 . Energy Discharges 1 | . . . . . 1 . Data Loss (minor) 4 | . . . . . 4 . Targeting Errors 4 | . . . 1 . 3 . Overload Shots . | . . . . . . . Overflow Damage 137 | . . . 27 . 110 . Projectiles 64 | . . . . . 64 . Explosions 56 | . . . 27 . 29 . Melee 17 | . . . . . 17 . Knockbacks . | . . . . . . . Impact . | . . . . . . . Kinetic . | . . . . . . . Secondary . | . . . . . . . Self-Inflicted Damage 7 | . 7 . . . . . Shots . | . . . . . . . Rammed 2 | . 1 . 1 . . . Targets Rammed 2 | . 1 . 1 . . . Kicked . | . . . . . . . Crushed . | . . . . . . . Highest Temperature 264 | . 264 183 244 . 144 . Average Temperature 59 | . 70 61 46 . 58 . Received Heat Transfer 243 | . 72 87 84 . . . Siege Activations . | . . . . . . . Robots Corrupted . | . . . . . . . Combat Hostiles . | . . . . . . . Parts Fried . | . . . . . . . Impact Corruptions . | . . . . . . . Robots Melted . | . . . . . . . Combat Hostiles . | . . . . . . . Parts Melted 1 | . 1 . . . . . Heat Transferred 1875 | . 919 396 . . 560 . Parts Sabotaged . | . . . . . . . Parts Stolen . | . . . . . . . Parts Stripped . | . . . . . . . Power Chain Reactions . | . . . . . . . Missiles Intercepted . | . . . . . . . Alert | -11 -10 -10 -9 -9 -9 -8 ------- Run | Scr Mat Min Mat Min Exi Min Peak Influence 386 | . 110 214 386 111 . . Initial 103 | . . 11 26 103 . . Average 101 | . 51 86 162 110 . . Maximum Alert Level 1 | . . 1 1 . . . Low Security (%) 85 | . 100 87 65 100 . 100 Level 1 14 | . . 12 34 . . . Level 2 . | . . . . . . . Level 3 . | . . . . . . . Level 4 . | . . . . . . . Level 5 . | . . . . . . . High Security . | . . . . . . . Max Security . | . . . . . . . Squads Dispatched 3 | . 2 . 1 . . . Investigation . | . . . . . . . Extermination . | . . . . . . . Reinforcement 3 | . 2 . 1 . . . Assault . | . . . . . . . Garrison . | . . . . . . . Intercept . | . . . . . . . Construction Impeded . | . . . . . . . Haulers Reinforced . | . . . . . . . Stealth | -11 -10 -10 -9 -9 -9 -8 --------- Run | Scr Mat Min Mat Min Exi Min Distress Signals 5 | . 1 . 4 . . . Communications Jammed . | . . . . . . . Distress Signals . | . . . . . . . Times Spotted 66 | . 7 12 25 . 21 1 Peak Tracking Total 6 | . 3 3 6 . 5 1 Tactical Retreats 6 | . . . 2 . 4 . Traps | -11 -10 -10 -9 -9 -9 -8 ------- Run | Scr Mat Min Mat Min Exi Min Traps Triggered 2 | . . . 2 . . . Indirectly . | . . . . . . . Trap Hack Attempts . | . . . . . . . Triggered . | . . . . . . . Disarmed . | . . . . . . . Reprogrammed . | . . . . . . . Reused . | . . . . . . . Traps Extracted . | . . . . . . . Installed . | . . . . . . . Triggered . | . . . . . . . Machines | -11 -10 -10 -9 -9 -9 -8 ---------- Run | Scr Mat Min Mat Min Exi Min Machines Disabled 15 | . . . 3 . 12 . Max in Single Turn 2 | . . . 1 . 2 . Machines Sabotaged . | . . . . . . . Garrisons Compromised . | . . . . . . . Overloaded Fab Kills . | . . . . . . . Fab Network Shutdowns . | . . . . . . . Hacking | -11 -10 -10 -9 -9 -9 -8 --------- Run | Scr Mat Min Mat Min Exi Min Machines Accessed 5 | . 1 . 1 1 2 . Terminals 3 | . 1 . 1 1 . . Fabricators . | . . . . . . . Repair Stations . | . . . . . . . Recycling Units . | . . . . . . . Scanalyzers . | . . . . . . . Garrison Access . | . . . . . . . Total Hacks 8 | . 1 . 3 2 2 . Successful 5 | . 1 . 1 1 2 . Failed 3 | . . . 2 1 . . Catastrophic . | . . . . . . . Database Lockouts . | . . . . . . . Manual 5 | . 1 . 1 2 1 . Terminals 6 | . 1 . 3 2 . . Fabricators . | . . . . . . . Repair Stations . | . . . . . . . Recycling Units . | . . . . . . . Scanalyzers . | . . . . . . . Garrison Access . | . . . . . . . Terminal Hacks 5 | . 1 . 1 1 2 . Record 1 | . . . . . 1 . Branch Access Points 3 | . 1 . 1 1 . . EX-Prototype ID Bank 1 | . . . . . 1 . Fabricator Hacks . | . . . . . . . Repair Station Hacks . | . . . . . . . Recycling Unit Hacks . | . . . . . . . Scanalyzer . | . . . . . . . Garrison Access Hacks . | . . . . . . . Unauthorized Hacks . | . . . . . . . Terminals . | . . . . . . . Fabricators . | . . . . . . . Repair Stations . | . . . . . . . Recycling Units . | . . . . . . . Scanalyzers . | . . . . . . . Garrison Access . | . . . . . . . Data Cores Recovered . | . . . . . . . Used . | . . . . . . . Hacking Detections 2 | . 1 . 1 . . . Full Trace Events . | . . . . . . . Feedback Events . | . . . . . . . Feedback Blocked . | . . . . . . . Robot Schematics Acquired . | . . . . . . . Robots Built . | . . . . . . . Matter . | . . . . . . . Time . | . . . . . . . Total Robot Build Rating . | . . . . . . . Part Schematics Acquired . | . . . . . . . Parts Built . | . . . . . . . Matter . | . . . . . . . Time . | . . . . . . . Total Part Build Rating . | . . . . . . . Parts Repaired . | . . . . . . . Time . | . . . . . . . Parts Recycled . | . . . . . . . Recycled Matter . | . . . . . . . Retrieved Matter . | . . . . . . . Retrieved Components . | . . . . . . . Parts Scanalyzed . | . . . . . . . Part Schematics Acquired . | . . . . . . . Parts Damaged . | . . . . . . . Bothacking | -11 -10 -10 -9 -9 -9 -8 ------------ Run | Scr Mat Min Mat Min Exi Min Used RIF Installer . | . . . . . . . Robots Hacked . | . . . . . . . Non-combat . | . . . . . . . Combat . | . . . . . . . Robot Hacks Applied . | . . . . . . . Relay Couplers Released . | . . . . . . . Robots Rewired . | . . . . . . . Allies Hacked . | . . . . . . . Hacks Repelled . | . . . . . . . Allies | -11 -10 -10 -9 -9 -9 -8 -------- Run | Scr Mat Min Mat Min Exi Min Total Allies 4 | . . 4 . . . . Largest Group 4 | . . 4 . . . . Highest-Rated Group 71 | . . 71 . . . . Highest-Rated Ally 31 | . . 31 . . . . Total Orders . | . . . . . . . Ally Attacks 53 | . . 53 . . . . Total Damage 783 | . . 783 . . . . Kills 7 | . . 7 . . . . Allies Corrupted . | . . . . . . . Allies Melted . | . . . . . . . Intel | -11 -10 -10 -9 -9 -9 -8 ------- Run | Scr Mat Min Mat Min Exi Min Robot Analysis Total . | . . . . . . . Derelict Logs Recovered 2 | . . 2 . . . . Drone Launches . | . . . . . . . Drone Recoveries . | . . . . . . . Exploration | -11 -10 -10 -9 -9 -9 -8 ------------- Run | Scr Mat Min Mat Min Exi Min Turns Passed 4555 | . 573 1214 861 269 1548 90 Spaces Moved 2415 | 1 289 648 384 150 893 50 Core . | . . . . . . . Treads 1204 | . . . 384 150 670 . Legs 938 | 1 289 648 . . . . Wheels . | . . . . . . . Hover 273 | . . . . . 223 50 Flight . | . . . . . . . Fastest Speed 66 | 120 120 150 160 180 66 66 Average Speed 164 | 120 162 179 179 180 147 110 Slowest Speed 180 | 120 180 180 180 180 180 136 Overloaded Moves . | . . . . . . . Propulsion Burnouts . | . . . . . . . Robots Hopped . | . . . . . . . Cave-ins Triggered . | . . . . . . . Exploration Rate (%) 44 | 2 50 98 33 23 89 17 Regions Visited 6 Branch Regions 4 Pre-discovered Areas 2 | . . 1 . . 1 . Known Exits Taken 2 | . 1 . 1 . . . Unknown Exits Taken 4 | 1 . 1 . 1 1 . Scrap Searched 4 | . . 3 . . . 1 Spaces Dug 20 | . . 9 11 . . . Terrain Destroyed 81 | . . 16 31 . 34 . Melee . | . . . . . . . Projectile 21 | . . . . . 21 . AOE 60 | . . 16 31 . 13 . Terrain Rammed . | . . . . . . . Walls Destroyed . | . . . . . . . Machines Disabled . | . . . . . . . Actions | -11 -10 -10 -9 -9 -9 -8 --------- Run | Scr Mat Min Mat Min Exi Min Total 2772 | . 339 676 488 149 1041 79 Wait 58 | . 9 2 24 . . 23 Move 2409 | . 288 647 383 149 892 50 Hop . | . . . . . . . Pick Up 52 | . 6 6 11 . 28 1 Fast Attach 21 | . 2 3 7 . 9 . Attach 17 | . . . 2 . 15 . Detach 4 | . . . . . 4 . Swap 22 | . 3 3 5 . 8 3 Drop 46 | . 4 4 17 . 21 . Fire 120 | . 26 11 38 . 45 . Melee 21 | . . . . . 19 2 Ram . | . . . . . . . Kick 1 | . 1 . . . . . Crush 1 | . . . 1 . . . Escape Stasis . | . . . . . . . Rewire . | . . . . . . . Trap . | . . . . . . . Miscellaneous . | . . . . . . . Route ------- -11/Scrapyard -10/Materials (discovered 2 exits: *Mat / *Min) -10/Mines (discovered 2 exits: *Mat x2) -9/Materials (discovered 2 exits: [*Mat] / *Min) -9/Mines (discovered 2 exits: *Exi / [*Zio]) -9/Exiles -8/Mines (discovered 1 exit: [*Mat]) History --------- Turn | Location | Event 1 | -11/Scrapyard | Discovered new exit (range 0) 1 | -11/Scrapyard | Entered Materials 188 | -10/Materials | Identified exit to Mines 312 | -10/Materials | Build established: Mutant 475 | -10/Materials | Discovered new exit (range 16) 574 | -10/Materials | Entered Mines 628 | -10/Mines | Discovered new exit (range 8) 635 | -10/Mines | Received a Rocket Launcher from a helpful Derelict 870 | -10/Mines | Assisted by bots powering up and referring to "LRC-V3" 995 | -10/Mines | Received a Mining Laser from a helpful Derelict 1278 | -10/Mines | Learned location of Storage (-7) 1384 | -10/Mines | Discovered new exit (range 7) 1470 | -10/Mines | Learned Materials non-interactive machine intel 1788 | -10/Mines | Entered Materials 1788 | -9/Materials | Evolved 2 slots: Utility x2 1789 | -9/Materials | Loaded intel: 54 non-interactive machine locations 1956 | -9/Materials | Identified exit to Mines 2101 | -9/Materials | Discovered new exit (range 15) 2649 | -9/Materials | Entered Mines 2806 | -9/Mines | Deemed a non-threat by the Exiles lab entrance 2806 | -9/Mines | Discovered new exit (range 5) 2827 | -9/Mines | A Derelict revealed a hidden shortcut to a safe place 2918 | -9/Mines | Entered Exiles 3040 | -9/Exiles | Met 8R-AWN 3148 | -9/Exiles | Met EX-HEX 3200 | -9/Exiles | Met EX-BIN 3377 | -9/Exiles | Met EX-DEC 3420 | -9/Exiles | Learned location of Zion (-7) 3474 | -9/Exiles | Aligned with FarCom system 3476 | -9/Exiles | Given EX-Vault access code 3517 | -9/Exiles | Opened EX-Vault 3530 | -9/Exiles | Found AWS/Gauss 3536 | -9/Exiles | Found YOLO Cannon 3577 | -9/Exiles | Warned to stay clear of 0b10 Research branches 3609 | -9/Exiles | Build established: Hauler-Mutant 3745 | -9/Exiles | Attacked by the Exiles 3833 | -9/Exiles | Lost 3 parts (2n1u) 3850 | -9/Exiles | Destroyed 8R-AWN 3865 | -9/Exiles | Found Prototype Ballistic Gun 3970 | -9/Exiles | Core integrity fell below 50% 3973 | -9/Exiles | Identified 8R-AWN's Boregun 3994 | -9/Exiles | Build established: Mutant 4002 | -9/Exiles | Lost 3 parts (1n1u1w) 4172 | -9/Exiles | Destroyed EX-BIN 4213 | -9/Exiles | Destroyed EX-DEC 4350 | -9/Exiles | Build established: Scavenger-Mutant 4458 | -9/Exiles | Discovered new exit (range 14) 4466 | -9/Exiles | Entered Mines 4512 | -8/Mines | Discovered new exit (range 7) 4550 | -8/Mines | 1C-UTU came to Exiles' defense 4555 | -8/Mines | Core integrity fell below 20% 4556 | -8/Mines | Destroyed by 1C-UTU with 1C-UTU's Sword "Choppy" Last Messages --------------- 04455_ Acquired Rnf. Ion Engine. 04458_ EXIT=FOUND A strange signal echoes through the mines. LOCATION=UNKNOWN GOAL=ESCAPE 04474_ Searching scrap... 04474_ Found Trap Extractor. 04474_ Found Tractor Beam. 04474_ Found Imp. Light Armor Plating. 04474_ Found 23 Matter. 04475_ Acquired 23 matter. 04476_ Acquired Imp. Light Armor Plating. 04512_ EXIT=FOUND 04550_ 1C-UTU: "I came as fast as I could... Wait, it was you!" 04550_ Axe follow-up attack on 1C-UTU. 04552_ 1C-UTU follow-up attacks with Prototype Slashing Weapon. 04552_ Imp. Light Armor Plating severed. 04553_ Mak. Hover Unit destroyed. 04554_ 1C-UTU follow-up attacks with Prototype Slashing Weapon. 04555_ Axe destroyed. Map ----- +----------------------------------------------------+ | ???????????????# #????#### ##??? | | ???????????????# #??### #??? | | ???????????????# #?## #??? | | ???????????????# #?# #??? | | ??????????????? #### #??? | | ??????????????? #?# #??? | | ??????????????## ##?# """ ##??? | | ???????????????# #??# """ ##???? | | ???????????????# #??# """ #????? | | ???????????????# #??## #????? | | ???????????????# ????## #????? | | ???????????????# ????## ##????? | | ???????????????? ???## ##?????? | | ?????????????????????# ##??????? | | ?????????????????????# ##???????? | | ?????????????????????# ##???????? | | ?????????????????????# ##??????? | | ?????????????????????# ##?????? | | ?????????????????????## #?????? | | ??????????????????????### #?????? | | ????????????????????????## ##????? | | ?????????????????????????# #????? | | ?????????????????????????# ! #????? | | ?????????????????????????# #????? | | ????????????????????######l ##????? | | ???????????????????## ##@ ##?????? | | ???????????????????# < #??????? | | ???????????????????## ##??????? | | ????????????????????#### ##???????? | | ???????????????????????####????????? | | ???????????????????????????????????? | | ???????????????????????????????????? | | ???????????????????????????????????? | | ???????????????????????????????????? | | ???????????????????????????????????? | | ???????????????????????????????????? | | ???????????????????????????????????? | | ???????????????????????????????????? | | ???????????????????????????????????? | | ???????????????????????????????????? | | ???????????????????????????????????? | | ???????????????????????????????????? | | ???????????????????????????????????? | | ???????????????????????????????????? | | | | | | | | | | | | | +----------------------------------------------------+ Best States ------------- Heat Dissipation 28 Coolant Potential 50 Energy Generation 19 Energy Capacity 310 Matter Stores 300 Matter Capacity 300 Sight Range 16 Robot Scan Range 22 Terrain Scan Density 10 Jamming Range 16 Armor Coverage 150 Core Shielding 20 Evasion (%) 51 Target Analysis 6 Recoil Reduction 2 Item Schematics ----------------- None Robot Schematics ------------------ None Fabricated ------------ Nothing Alien Tech Used ----------------- None Achievements -------------- None Challenges ------------ None Game ------ Seed SiegeIntegrationFalx Manual? 0 Play Time 00:26:00 Cumulative 167.9 hours Start 2020.12.21 @ 10:25:03 End 2020.12.21 @ 10:49:07 Sessions 1 Manual Loads 0 Difficulty Rogue Special Mode None Game No. 166 Rogue 159 Adventurer 0 Explorer 7 Win Type - Total 3 Types 0/0/3/0/0/0/0/0/0 Lore% 62 Gallery% 88 Achievement% 64 Wizard Run 0 Options --------- ASCII 0 Keyboard 0 Movement Mouse Keybinds 0 Fullscreen 1 Font 18/X11 Map View 76x50 Tactical HUD 1 Map Filters NONE Filters NONE Steam 1 RUN: 1ec88969-7889-431f-9d2c-e74fe272b01a